bitfinex/quotes_SOLUSD_20240705
["timestamp","ask_amount","ask_price","bid_price","bid_amount"]
[1720182755605,7.612,131.38,131.18,115.0]
[1720182755606,19.0245,131.41,131.2,100.0]
[1720182755805,7.6126,131.37,131.2,100.0]
[1720182756135,130.46518,131.51,131.29,100.0]
[1720182756136,30.46518,131.51,131.29,100.0]
[1720182756304,19.0126,131.5,131.27,100.0]
[1720182756503,7.6055,131.49,131.3,100.0]
[1720182756804,38.0046,131.57,131.31,100.0]
[1720182756999,60.44,131.58,131.37,100.0]
[1720182757205,30.461797,131.53,131.38,20.17]
[1720182757432,1.75577733,131.55,131.28,115.0]
[1720182757725,32.21757433,131.55,131.3,122.76]
[1720182757928,30.461797,131.55,131.31,20.17]
[1720182758106,62.65577733,131.54,131.25,100.0]
[1720182758308,60.44,131.49,131.26,100.0]
[1720182758550,20.0,131.48,131.28,100.0]
[1720182758701,20.0,131.48,131.25,100.0]
[1720182758702,7.61,131.41,131.25,100.0]
[1720182759013,1.75577733,131.54,131.31,100.0]
[1720182759221,1.75577733,131.54,131.11,6.248]
[1720182759222,7.608,131.44,131.29,100.0]
[1720182759524,7.6059,131.48,131.35,100.0]
[1720182759723,7.6056,131.49,131.35,100.0]
[1720182759913,1.75577733,131.54,131.32,100.0]
[1720182760114,30.461797,131.55,131.36,100.0]
[1720182760115,7.604,131.51,131.36,100.0]
[1720182760437,1.75577733,131.53,131.37,20.17]
[1720182760604,1.75577733,131.53,131.28,200.0]
[1720182760605,7.6082,131.44,131.28,200.0]
[1720182760807,19.0167,131.47,131.28,222.76]
[1720182761133,7.6166,131.3,131.15,100.0]
[1720182761344,1.75577733,131.53,131.06,100.0]
[1720182761345,0.17,131.29,131.06,100.0]
[1720182761509,20.0,131.35,131.11,100.0]
[1720182761842,19.0395,131.31,131.12,100.0]
[1720182762042,20.0,131.3,131.12,100.0]
[1720182762211,7.6186,131.26,131.12,100.0]
[1720182762407,19.0353,131.34,131.14,100.0]
[1720182762629,38.052,131.4,131.19,100.0]
[1720182762832,65.17,131.39,131.17,100.0]
[1720182763035,7.6179,131.27,131.17,100.0]
[1720182763239,20.0,131.26,131.17,100.0]
[1720182763451,20.0,131.26,131.11,100.0]
[1720182763643,20.0,131.26,131.13,100.0]
[1720182763845,60.44,131.35,131.13,100.0]
[1720182763846,7.6173,131.28,131.13,100.0]
[1720182764072,20.0,131.27,131.11,100.0]
[1720182764359,7.7885,131.26,131.12,100.0]
[1720182764555,27.6193,131.25,131.11,100.0]
[1720182765070,7.6217,131.21,131.1,100.0]
[1720182765240,20.0,131.2,131.08,100.0]
[1720182765438,7.6225,131.2,131.08,100.0]
[1720182765750,7.6243,131.16,131.04,100.0]
[1720182765952,0.17,131.19,131.0,100.0]
[1720182766160,20.0,131.15,131.02,100.0]
[1720182766334,20.0,131.15,131.06,100.0]
[1720182766647,20.0,131.15,131.09,7.6279]
[1720182766837,0.17,131.16,131.07,7.6289]
[1720182767031,51.91,131.22,130.98,15.0]
[1720182767032,20.0,131.19,131.03,100.0]
[1720182767229,20.0,131.19,131.06,100.0]
[1720182767542,20.0,131.21,131.09,7.6281]
[1720182767863,0.17,131.2,131.07,7.6289]
[1720182768163,0.17,131.2,130.94,20.0]
[1720182768164,51.91,131.22,131.08,122.76]
[1720182768350,51.91,131.22,131.13,7.6259]
[1720182768351,7.622,131.2,131.13,7.6259]
[1720182768657,51.91,131.22,131.13,7.6259]
[1720182768831,51.91,131.22,131.14,7.6254]
[1720182769035,51.91,131.22,131.11,7.6266]
[1720182769237,7.6232,131.18,131.11,7.6266]
[1720182769433,51.91,131.22,131.05,100.0]
[1720182769638,20.0,131.21,131.07,100.0]
[1720182769834,20.0,131.21,131.09,100.0]
[1720182770136,7.616,131.31,131.22,7.6207]
[1720182770354,59.5254,131.32,131.12,100.0]
[1720182770543,59.5254,131.32,131.11,100.0]
[1720182770544,7.6176,131.28,131.14,100.0]
[1720182770744,51.91,131.32,131.15,20.17]
[1720182771258,51.91,131.32,131.13,100.0]
[1720182771460,7.6179,131.27,131.14,20.0]
[1720182771635,7.6166,131.3,131.14,20.0]
[1720182771836,51.91,131.32,131.15,100.17]
[1720182772061,51.91,131.32,131.16,20.0]
[1720182772272,51.91,131.32,131.17,0.17]
[1720182772747,19.0403,131.31,131.11,100.0]
[1720182772948,51.91,131.32,131.14,100.0]
[1720182773146,51.91,131.32,131.15,0.17]
[1720182773352,70.9478,131.32,131.11,8.16019398]
[1720182773554,7.6207,131.23,131.1,100.0]
[1720182773778,20.0,131.22,131.1,100.0]
[1720182773940,40.79607733,131.31,131.1,100.0]
[1720182774134,19.0429,131.29,131.1,100.0]
[1720182774337,1.75577733,131.3,131.11,100.0]
[1720182774770,7.6185,131.26,131.12,100.0]
[1720182774948,7.6184,131.26,131.12,100.0]
[1720182775152,7.6167,131.29,131.12,100.0]
[1720182775349,7.6167,131.29,131.14,100.0]
[1720182775666,7.6209,131.22,131.1,100.0]
[1720182775965,19.0418,131.29,131.1,100.0]
[1720182776280,7.6195,131.25,131.1,100.0]
[1720182776436,51.91,131.32,131.12,100.0]
[1720182776437,70.9478,131.32,131.12,100.0]
[1720182776641,19.0449,131.27,131.1,200.0]
[1720182776841,7.6201,131.24,131.1,200.0]
[1720182777060,20.17,131.23,131.1,200.0]
[1720182777271,0.17,131.26,131.1,200.0]
[1720182777480,0.17,131.26,131.07,100.0]
[1720182777779,0.17,131.26,131.04,100.0]
[1720182778150,7.6228,131.19,131.04,100.0]
[1720182778449,19.0498,131.24,131.04,100.0]
[1720182778650,58.0911,131.27,131.04,200.0]
[1720182778651,20.0,131.18,131.04,200.0]
[1720182779053,20.0,131.19,131.07,22.76]
[1720182779250,20.0,131.19,131.09,100.0]
[1720182779568,70.948,131.32,131.1,120.0]
[1720182779743,51.91,131.32,131.11,100.0]
[1720182779943,20.0,131.29,131.12,20.0]
[1720182780144,20.0,131.29,131.13,0.17]
[1720182780559,1.75577733,131.31,131.13,0.17]
[1720182780744,7.6173,131.28,131.13,100.17]
[1720182780947,1.75577733,131.31,131.14,120.0]
[1720182781155,7.6167,131.29,131.15,122.93]
[1720182781350,19.0416,131.3,131.16,100.0]
[1720182781675,9.37177733,131.31,131.18,100.0]
[1720182781844,20.79537733,131.31,131.15,0.17]
[1720182782049,7.618,131.27,131.15,0.17]
[1720182782243,7.6167,131.29,131.16,22.76]
[1720182782547,1.75577733,131.31,131.13,100.0]
[1720182782752,1.75577733,131.31,131.05,100.0]
[1720182782753,51.91,131.26,131.05,100.0]
[1720182782956,38.1012,131.23,131.05,100.0]
[1720182783166,20.0,131.25,131.06,22.76]
[1720182783364,20.0,131.25,131.08,22.76]
[1720182783572,1.75577733,131.31,131.0,6.4213]
[1720182783573,1.75577733,131.31,131.19,22.76]
[1720182783746,9.37137733,131.31,131.17,100.0]
[1720182783945,19.0385,131.32,131.15,100.0]
[1720182784143,51.91,131.37,131.12,100.0]
[1720182784144,51.91,131.31,131.12,22.76]
[1720182784365,51.91,131.31,131.07,100.0]
[1720182784366,7.6243,131.16,131.07,100.0]
[1720182784672,7.6265,131.13,131.0,200.0]
[1720182784886,51.91,131.19,130.98,100.0]
[1720182784887,19.06,131.17,130.98,100.0]
[1720182785046,19.06,131.17,131.0,100.0]
[1720182785249,20.0,131.16,131.03,22.76]
[1720182785485,7.6267,131.12,131.0,100.0]
[1720182785772,20.0,131.11,131.0,100.0]
[1720182785984,27.6276,131.11,130.98,100.0]
[1720182786169,7.6237,131.17,131.02,22.76]
[1720182786376,20.0,131.16,131.03,100.0]
[1720182786551,20.0,131.18,131.02,200.0]
[1720182786758,20.0,131.18,131.03,100.0]
[1720182786953,7.6255,131.14,131.0,100.0]
[1720182787152,20.0,131.13,131.02,100.0]
[1720182787377,20.0,131.18,131.05,22.76]
[1720182787575,7.6249,131.15,131.06,0.17]
[1720182787781,20.0,131.18,131.03,0.17]
[1720182787782,53.83,131.17,131.03,100.17]
[1720182788086,53.83,131.13,131.05,100.0]
[1720182788252,53.83,131.19,131.06,0.17]
[1720182788453,53.83,131.19,131.06,100.17]
[1720182788654,19.0432,131.28,131.1,100.0]
[1720182788954,61.4513,131.22,131.11,0.17]
[1720182789149,7.6243,131.16,131.04,100.0]
[1720182789377,7.6243,131.16,131.02,100.0]
[1720182789378,53.83,131.18,131.07,0.17]
[1720182789677,53.83,131.18,131.08,22.76]
[1720182789860,19.0394,131.31,131.1,22.76]
[1720182790051,53.83,131.25,131.11,0.17]
[1720182790252,53.83,131.25,131.11,410.23]
[1720182790474,53.83,131.25,131.11,510.23]
[1720182790774,53.83,131.25,131.12,20.0]
[1720182790974,53.83,131.25,131.13,0.17]
[1720182791183,53.83,131.24,131.13,0.17]
[1720182791480,53.83,131.24,131.12,20.0]
[1720182792089,7.6161,131.3,131.12,507.3]
[1720182792267,53.83,131.28,131.13,200.0]
[1720182792453,53.83,131.27,131.12,20.0]
[1720182792858,7.619,131.26,131.12,20.0]
[1720182793060,53.83,131.27,131.12,20.0]
[1720182793263,7.6201,131.24,131.11,100.0]
[1720182793459,7.6208,131.22,131.11,100.0]
[1720182793681,7.6208,131.22,131.08,747.2]
[1720182793682,7.626,131.13,131.08,387.3]
[1720182793900,7.6279,131.1,130.98,100.0]
[1720182794069,53.83,131.18,131.0,200.0]
[1720182794264,0.17,131.17,131.03,100.0]
[1720182794584,27.7938,131.17,131.04,22.76]
[1720182794907,20.17,131.17,131.03,100.0]
[1720182795460,20.17,131.17,131.05,122.76]
[1720182795689,7.6252,131.15,131.02,100.0]
[1720182795868,20.0,131.14,131.05,100.0]
[1720182796080,61.4535,131.18,131.05,100.0]
[1720182796395,7.626,131.13,131.0,487.3]
[1720182796577,0.17,131.14,131.01,22.76]
[1720182796761,0.17,131.17,131.01,122.76]
[1720182796969,0.17,131.17,131.0,387.3]
[1720182797167,7.6258,131.14,131.0,487.3]
[1720182797472,0.17,131.13,131.01,122.76]
[1720182797670,27.7964,131.13,130.99,387.3]
[1720182797870,7.6282,131.1,130.97,100.0]
[1720182798100,100.0,130.73,130.72,28.42647419]
[1720182798400,100.0,130.73,130.54,15.44320634]
[1720182798401,45.81,130.67,130.43,57.39216561]
[1720182798579,107.84864182,130.68,130.43,4.16853008]
[1720182798580,53.83,130.51,130.43,4.16853008]
[1720182798775,45.81,130.65,130.41,100.0]
[1720182798776,38.97915267,130.49,130.41,100.0]
[1720182798992,38.95315895,130.47,130.37,0.04545085]
[1720182799177,54.89723679,130.38,130.37,0.04545085]
[1720182799505,146.53336348,130.38,130.37,100.0]
[1720182799865,181.68589755,130.38,130.37,107.6704]
[1720182800278,121.68609755,130.38,130.37,163.5204]
[1720182800590,65.72907645,130.52,130.41,100.0]
[1720182800591,7.663,130.5,130.41,100.0]
[1720182800790,0.17,130.49,130.41,100.0]
[1720182800980,0.17,130.51,130.41,100.0]
[1720182801307,0.17,130.51,130.38,100.0]
[1720182801610,15.17,130.51,130.44,7.6659]
[1720182801905,53.83,130.55,130.49,7.6632]
[1720182802200,0.17,130.54,130.43,100.0]
[1720182802613,0.17,130.54,130.44,7.6661]
[1720182802782,15.0,130.52,130.32,53.83]
[1720182803107,54.0,130.51,130.32,100.0]
[1720182803399,15.0,130.52,130.34,100.0]
[1720182803705,53.83,130.55,130.48,7.6636]
[1720182804001,15.0,130.48,130.28,100.0]
[1720182804178,15.0,130.48,130.42,7.6674]
[1720182804379,15.0,130.48,130.25,61.2352452]
[1720182804609,15.0,130.43,130.25,1.3297452]
[1720182804918,1.51285715,130.42,130.38,7.6698]
[1720182805076,1.51285715,130.42,130.3,100.0]
[1720182805275,0.17,130.41,130.27,100.0]
[1720182805479,1.51285715,130.42,130.25,1.3297452]
[1720182805711,0.17,130.41,130.38,7.6693]
[1720182805888,1.51285715,130.42,130.25,1.3297452]
[1720182805889,1.51285715,130.42,130.32,100.0]
[1720182806089,1.51285715,130.42,130.4,7.6685]
[1720182806603,1.51285715,130.42,130.33,100.0]
[1720182806904,1.51285715,130.42,130.4,7.6683]
[1720182807202,15.0,130.58,130.41,20.0]
[1720182807403,53.83,130.57,130.38,20.0]
[1720182807610,15.0,130.55,130.49,7.6632]
[1720182807808,15.0,130.55,130.38,20.0]
[1720182808006,61.4934,130.49,130.4,7.6682]
[1720182808214,15.0,130.48,130.3,100.0]
[1720182808396,15.0,130.48,130.38,7.6698]
[1720182808397,15.0,130.44,130.38,7.6698]
[1720182808714,0.17,130.43,130.42,7.6675]
[1720182808926,15.0,130.44,130.43,7.6669]
[1720182809099,15.17,130.44,130.3,100.0]
[1720182809416,15.0,130.44,130.31,100.0]
[1720182809590,15.0,130.44,130.3,200.0]
[1720182810006,15.0,130.42,130.3,100.0]
[1720182811402,0.17,130.41,130.3,100.0]
[1720182811611,0.17,130.41,130.25,1.3297452]
[1720182812116,54.0,130.41,130.25,1.3297452]
[1720182812490,15.0,130.42,130.3,100.0]
[1720182812704,15.0,130.42,130.32,100.0]
[1720182813022,15.0,130.42,130.26,100.0]
[1720182813235,15.0,130.42,130.27,100.0]
[1720182813395,15.0,130.42,130.26,100.0]
[1720182813592,15.0,130.42,130.25,101.3297452]
[1720182813593,15.0,130.42,130.3,100.0]
[1720182813798,15.0,130.42,130.26,100.0]
[1720182814020,68.83,130.42,130.26,100.0]
[1720182814191,15.0,130.42,130.26,100.0]
[1720182814594,15.0,130.42,130.27,100.0]
[1720182814832,15.0,130.42,130.26,100.0]
[1720182815029,20.0,130.41,130.26,100.0]
[1720182815242,15.0,130.42,130.26,100.0]
[1720182815543,20.0,130.41,130.25,101.3297452]
[1720182815703,15.0,130.41,130.25,101.3297452]
[1720182815909,15.0,130.41,130.25,1.3297452]
[1720182816105,15.0,130.35,130.25,1.3297452]
[1720182816621,20.0,130.34,130.25,1.3297452]
[1720182816831,15.0,130.32,130.25,1.3297452]
[1720182817131,15.0,130.32,130.12,100.0]
[1720182817132,0.17,130.31,130.16,100.0]
[1720182817440,35.17,130.31,130.16,100.0]
[1720182817605,35.17,130.31,130.12,100.0]
[1720182817931,7.6753,130.29,130.06,53.83]
[1720182818137,0.17,130.28,130.12,200.0]
[1720182818320,15.17,130.31,130.15,100.0]
[1720182818516,15.17,130.31,130.12,153.83]
[1720182818708,15.17,130.31,130.16,100.0]
[1720182818908,15.17,130.31,130.12,100.0]
[1720182819103,15.17,130.31,130.07,106.2520969]
[1720182819321,15.0,130.08,130.02,1.4920231]
[1720182819509,15.0,130.08,129.85,6.0378]
[1720182819510,7.6928,129.99,129.83,100.0]
[1720182819703,15.0,129.93,129.76,200.0]
[1720182819920,15.0,129.81,129.66,100.0]
[1720182820125,54.37,129.83,129.65,0.8710238]
[1720182820126,15.0,129.72,129.65,0.8710238]
[1720182820330,20.0,129.8,129.65,0.8710238]
[1720182820331,15.0,129.66,129.65,0.8710238]
[1720182820535,35.0,129.66,129.64,100.0]
[1720182820832,35.0,129.66,129.39,1.6824283]
[1720182820833,15.0,129.61,129.53,100.0]
[1720182821015,15.0,129.61,129.57,100.0]
[1720182821228,5.19352234,129.66,129.59,100.0]
[1720182821530,15.0,129.77,129.55,55.85]
[1720182821531,15.0,129.68,129.62,7.7143]
[1720182821744,5.3163351,129.77,129.48,54.37]
[1720182821745,15.0,129.65,129.48,54.37]
[1720182821944,15.0,129.67,129.53,100.0]
[1720182822107,54.37,129.61,129.42,100.0]
[1720182822305,56.0007,129.68,129.39,1.6824283]
[1720182822306,7.7228,129.49,129.39,1.6824283]
[1720182822527,69.37,129.52,129.45,100.0]
[1720182822738,15.0,129.76,129.51,100.0]
[1720182822915,54.37,129.68,129.48,100.0]
[1720182823115,15.93448204,129.75,129.62,100.0]
[1720182823116,15.0,129.65,129.62,100.0]
[1720182823321,15.0,129.82,129.62,200.0]
[1720182823506,15.0,129.89,129.77,100.0]
[1720182823703,0.93448204,129.89,129.77,100.0]
[1720182823940,15.0,129.85,129.77,100.0]
[1720182824151,15.0,129.85,129.65,23.7634]
[1720182824152,15.0,129.85,129.8,100.0]
[1720182824735,0.93448204,129.88,129.8,100.0]
[1720182824942,15.0,129.93,129.8,100.0]
[1720182824943,54.37,129.92,129.81,20.0]
[1720182825120,55.30448204,129.92,129.83,100.0]
[1720182825319,69.37,129.93,129.84,0.17]
[1720182825631,100.0,130.14,129.84,0.17]
[1720182825632,15.0,130.03,129.85,100.0]
[1720182825809,54.37,130.01,129.86,20.17]
[1720182826012,15.0,130.03,129.73,100.0]
[1720182826013,62.069,129.89,129.73,100.0]
[1720182826226,54.37,129.85,129.68,200.0]
[1720182826411,69.37,129.92,129.68,200.0]
[1720182826412,54.37,129.89,129.77,100.0]
[1720182826621,15.0,129.92,129.78,100.0]
[1720182826829,54.37,129.93,129.8,100.0]
[1720182827425,30.818814,129.97,129.89,100.0]
[1720182827611,54.37,130.02,129.89,100.0]
[1720182827817,55.30448204,130.02,129.9,20.0]
[1720182828019,15.0,129.97,129.82,100.0]
[1720182828326,54.37,129.93,129.83,0.17]
[1720182828539,15.0,129.97,129.82,0.17]
[1720182828540,69.37,129.97,129.82,0.17]
[1720182828842,69.37,129.97,129.84,100.0]
[1720182829046,0.93448204,130.02,129.9,100.0]
[1720182829215,54.37,130.04,129.92,100.0]
[1720182829534,30.773825,130.15,130.01,100.0]
[1720182829748,88.5849,130.11,129.92,55.85]
[1720182829924,130.773825,130.15,129.87,30.773304]
[1720182829925,54.37,129.96,129.87,30.773304]
[1720182830119,69.37,130.01,129.8,100.0]
[1720182830341,69.37,130.01,129.76,23.8888]
[1720182830342,15.0,130.01,129.85,100.0]
[1720182830549,30.802232,130.06,129.93,100.0]
[1720182830733,54.37,130.11,129.91,200.0]
[1720182830939,0.93448204,130.1,129.91,100.0]
[1720182831335,0.93448204,130.1,129.92,100.17]
[1720182831640,0.93448204,130.1,130.01,100.0]
[1720182831840,0.93448204,130.1,130.02,20.0]
[1720182832033,54.37,130.08,129.93,255.85]
[1720182832233,54.37,130.09,129.94,0.17]
[1720182832652,15.93448204,130.1,129.96,100.0]
[1720182832840,15.93448204,130.1,130.0,100.0]
[1720182833042,15.0,130.12,130.01,0.17]
[1720182833330,15.0,130.15,130.01,0.17]
[1720182833524,15.0,130.13,130.01,0.17]
[1720182833923,55.30448204,130.14,130.01,0.17]
[1720182834626,55.30448204,130.14,130.01,20.17]
[1720182834827,54.37,130.18,130.02,100.0]
[1720182835147,0.93448204,130.17,130.03,20.17]
[1720182835842,15.93448204,130.17,130.03,20.17]
[1720182836036,54.37,130.14,130.02,100.0]
[1720182836418,15.0,130.11,130.02,100.0]
[1720182836621,0.93448204,130.17,130.02,100.0]
[1720182836838,0.93448204,130.17,130.02,200.0]
[1720182837241,0.93448204,130.17,130.04,100.0]
[1720182837444,0.93448204,130.17,130.07,100.0]
[1720182837624,0.93448204,130.17,130.05,120.17]
[1720182837625,16.6913847,130.19,130.08,20.17]
[1720182837824,16.6913847,130.19,130.09,0.17]
[1720182838024,16.6913847,130.19,130.08,100.0]
[1720182838264,16.6913847,130.19,130.1,100.0]
[1720182838430,1.6913847,130.19,130.11,20.17]
[1720182838632,1.6913847,130.19,130.11,20.0]
[1720182838871,1.6913847,130.19,130.12,0.17]
[1720182839149,1.6913847,130.19,130.09,20.0]
[1720182839358,16.6913847,130.19,130.07,100.0]
[1720182839531,16.6913847,130.19,130.05,200.0]
[1720182840248,16.6913847,130.19,130.12,100.0]
[1720182840623,1.6913847,130.19,130.14,100.0]
[1720182840931,1.6913847,130.19,130.13,120.0]
[1720182840932,1.6913847,130.19,130.15,20.0]
[1720182841138,15.0,130.22,130.08,100.0]
[1720182841337,15.0,130.2,130.08,200.0]
[1720182841524,15.0,130.15,130.05,100.0]
[1720182841724,15.0,130.17,130.07,100.0]
[1720182842027,15.0,130.19,130.09,100.0]
[1720182842225,15.0,130.19,130.13,100.0]
[1720182842923,15.0,130.22,130.14,20.0]
[1720182843622,15.0,130.22,130.13,100.0]
[1720182843829,15.0,130.22,129.99,54.37]
[1720182843830,15.0,130.17,130.06,100.0]
[1720182844051,15.0,130.14,130.06,100.0]
[1720182844251,0.04567869,130.24,130.09,100.0]
[1720182844252,15.0,130.18,130.09,100.0]
[1720182844462,15.0,130.21,130.07,100.0]
[1720182844638,15.04567869,130.24,130.13,100.0]
[1720182844837,0.04567869,130.24,130.15,100.0]
[1720182845039,0.28201518,130.2,130.14,100.0]
[1720182845280,0.28201518,130.2,130.12,100.0]
[1720182845430,0.28201518,130.2,130.13,20.17]
[1720182845830,0.28201518,130.2,130.14,22.76]
[1720182846155,0.28201518,130.2,130.16,100.0]
[1720182846364,0.28201518,130.2,130.17,20.17]
[1720182846552,0.28201518,130.2,130.18,20.0]
[1720182846747,0.28201518,130.2,130.17,0.17]
[1720182847254,0.28201518,130.2,130.15,20.0]
[1720182847455,0.28201518,130.2,130.15,120.0]
[1720182847758,0.28201518,130.2,130.16,120.0]
[1720182847963,0.28201518,130.2,130.16,200.0]
[1720182848136,0.28201518,130.2,130.19,100.0]
[1720182848336,0.28201518,130.2,130.19,20.0]
[1720182848741,0.28201518,130.2,130.16,200.0]
[1720182849040,0.28201518,130.2,130.19,0.17]
[1720182849250,0.28201518,130.2,130.15,20.0]
[1720182849438,0.28201518,130.2,130.14,20.0]
[1720182849640,0.28201518,130.2,130.13,100.0]
[1720182850153,15.0,130.16,130.06,100.0]
[1720182850451,15.0,130.16,129.94,664.1225]
[1720182850452,15.0,130.14,130.08,100.0]
[1720182850646,0.28201518,130.15,130.1,100.0]
[1720182850848,0.28201518,130.15,130.07,100.0]
[1720182851359,15.0,130.11,130.0,100.0]
[1720182851574,54.37,130.18,129.94,16.9225]
[1720182851575,15.0,130.07,130.01,100.0]
[1720182851778,15.0,130.09,130.01,100.0]
[1720182852057,0.28201518,130.08,130.04,122.76]
[1720182852359,0.28201518,130.08,130.07,100.0]
[1720182852782,0.28201518,130.08,130.07,120.0]
[1720182853264,0.28201518,130.08,130.07,100.0]
[1720182853643,15.28201518,130.08,130.0,100.0]
[1720182853838,0.28201518,130.08,130.02,100.0]
[1720182854038,0.28201518,130.08,129.97,100.0]
[1720182854244,15.0,130.07,129.97,100.0]
[1720182854556,0.28201518,130.06,129.97,100.0]
[1720182854940,15.0,129.99,129.93,100.0]
[1720182855260,15.0,129.91,129.86,100.0]
[1720182855465,0.28201518,129.9,129.89,100.0]
[1720182856137,0.28201518,129.9,129.87,100.0]
[1720182856355,0.28201518,129.9,129.85,100.0]
[1720182856767,0.28201518,129.9,129.88,100.0]
[1720182857139,0.28201518,129.9,129.85,100.0]
[1720182857652,0.28201518,129.9,129.87,100.0]
[1720182857857,0.28201518,129.9,129.85,100.0]
[1720182858176,0.28201518,129.9,129.83,100.0]
[1720182858360,0.28201518,129.9,129.71,54.37]
[1720182858361,15.0,129.8,129.68,100.0]
[1720182858567,11.49053938,129.74,129.72,100.0]
[1720182858863,0.28201518,129.79,129.75,100.0]
[1720182859069,11.49095679,129.76,129.73,100.0]
[1720182859271,11.49095679,129.75,129.74,22.76]
[1720182859562,11.49095679,129.78,129.77,100.0]
[1720182859772,11.49095679,129.8,129.79,100.0]
[1720182859941,11.49095679,129.8,129.79,200.0]
[1720182860138,11.49095679,129.8,129.77,100.0]
[1720182860455,11.49095679,129.86,129.82,100.0]
[1720182860643,11.49095679,129.91,129.83,200.0]
[1720182860978,15.0,129.95,129.86,100.0]
[1720182860979,11.49095679,129.92,129.86,100.0]
[1720182861149,11.49095679,129.92,129.8,100.0]
[1720182861347,15.0,129.93,129.8,100.0]
[1720182861551,15.0,129.87,129.83,100.0]
[1720182861964,15.0,129.87,129.8,100.0]
[1720182862155,15.0,129.87,129.76,100.0]
[1720182862657,15.0,129.85,129.74,100.0]
[1720182862852,15.0,129.8,129.69,100.0]
[1720182863059,13.24920212,129.86,129.74,122.76]
[1720182863060,16.75824533,129.86,129.74,122.76]
[1720182863264,16.75824533,129.86,129.73,100.0]
[1720182863265,15.0,129.86,129.8,100.0]
[1720182863457,15.0,129.87,129.8,100.0]
[1720182863658,26.49095679,129.89,129.8,200.0]
[1720182863962,15.0,129.87,129.85,100.0]
[1720182864164,11.488292,129.92,129.85,100.0]
[1720182864474,15.0,129.91,129.82,100.0]
[1720182864644,11.488292,129.94,129.83,120.17]
[1720182864850,15.0,129.93,129.85,100.0]
[1720182865073,15.0,129.93,129.75,100.0]
[1720182865272,15.0,129.9,129.79,100.0]
[1720182865444,26.488292,129.9,129.77,100.0]
[1720182865644,63.82574533,129.92,129.8,100.0]
[1720182865645,11.488292,129.91,129.8,100.0]
[1720182865881,15.0,129.92,129.83,100.0]
[1720182866181,11.488292,129.95,129.85,100.0]
[1720182866182,26.488292,129.95,129.85,100.0]
[1720182866356,15.0,129.93,129.82,100.0]
[1720182866556,26.488292,129.93,129.82,100.0]
[1720182866853,54.37,129.97,129.82,100.0]